fUSD/lending_fUSD_20240419
["ID","MTS","AMOUNT","RATE_DAILY","PERIOD"]
[322977850,1713556259850,-151.0,0.00016712,2]
[322977851,1713556259859,-151.0,0.00016712,2]
[322977852,1713556259869,-519.56,0.00016712,2]
[322977853,1713556259878,-781.22,0.00016712,2]
[322977854,1713556259888,-1229.3,0.00016712,2]
[322977855,1713556259897,-500.0,0.00016712,2]
[322977856,1713556259906,-574.59,0.00016712,2]
[322977857,1713556259915,-167.101642,0.00016712,2]
[322977858,1713556259925,-500.0,0.00016712,2]
[322977859,1713556259934,-2434.28,0.00016712,2]
[322977860,1713556259944,-500.0,0.00016712,2]
[322977861,1713556259954,-1162.62,0.00016712,2]
[322977862,1713556259965,-167.101642,0.00016712,2]
[322977863,1713556259974,-793.64,0.00016712,2]
[322977864,1713556259983,-167.101642,0.00016712,2]
[322977865,1713556259993,-167.101642,0.00016712,2]
[322977866,1713556260003,-500.0,0.00016712,2]
[322977867,1713556260013,-500.0,0.00016712,2]
[322977868,1713556260026,-1028.33,0.00016712,2]
[322977869,1713556260036,-500.0,0.00016712,2]
[322977870,1713556260045,-500.0,0.00016712,2]
[322977871,1713556260055,-1634.32,0.00016712,2]
[322977872,1713556260066,-167.101642,0.00016712,2]
[322977873,1713556260077,-167.101642,0.00016712,2]
[322977874,1713556260086,-167.101642,0.00016712,2]
[322977875,1713556260096,-167.101648,0.00016712,2]
[322977876,1713556260316,-500.0,0.00016712,2]
[322977877,1713556260326,-500.0,0.00016712,2]
[322977878,1713556260335,-594.24,0.00016712,2]
[322977879,1713556260344,-732.77,0.00016712,2]
[322977880,1713556260356,-607.65,0.00016712,2]
[322977881,1713556260366,-627.94,0.00016712,2]
[322977882,1713556260375,-917.52,0.00016712,2]
[322977883,1713556260384,-1253.38,0.00016712,2]
[322977884,1713556260393,-500.0,0.00016712,2]
[322977885,1713556260402,-611.35,0.00016712,2]
[322977886,1713556260412,-860.19,0.00016712,2]
[322977887,1713556260421,-500.0,0.00016712,2]
[322977888,1713556260431,-500.0,0.00016712,2]
[322977889,1713556260440,-592.87,0.00016712,2]
[322977890,1713556260449,-500.0,0.00016712,2]
[322977891,1713556260459,-500.0,0.00016712,2]
[322977892,1713556260468,-798.2,0.00016712,2]
[322977893,1713556260478,-655.42,0.00016712,2]
[322977894,1713556260487,-500.0,0.00016712,2]
[322977895,1713556260496,-1074.22,0.00016712,2]
[322977896,1713556260505,-1328.53,0.00016712,2]
[322977897,1713556260514,-500.0,0.00016712,2]
[322977898,1713556260523,-500.0,0.00016712,2]
[322977899,1713556260532,-500.0,0.00016712,2]
[322977900,1713556260545,-1452.94,0.00016712,2]
[322977901,1713556260555,-500.0,0.00016712,2]
[322977902,1713556260566,-500.0,0.00016712,2]
[322977903,1713556260576,-916.96,0.00016712,2]
[322977904,1713556260585,-500.0,0.00016712,2]
[322977905,1713556260595,-1402.26,0.00016712,2]
[322977906,1713556260604,-781.75,0.00016712,2]
[322977907,1713556260614,-2329.4,0.00016712,2]
[322977908,1713556260623,-1062.38,0.00016712,2]
[322977909,1713556260632,-500.0,0.00016712,2]
[322977910,1713556260642,-650.97,0.00016712,2]
[322977911,1713556260651,-188.211259,0.00016712,2]
[322977912,1713556260661,-188.211259,0.00016712,2]
[322977913,1713556260671,-188.211259,0.00016712,2]
[322977914,1713556260680,-283.271293,0.00016712,2]
[322977915,1713556260690,-188.211259,0.00016712,2]
[322977916,1713556260699,-521.31,0.00016712,2]
[322977917,1713556260708,-283.271293,0.00016712,2]
[322977918,1713556260718,-283.271293,0.00016712,2]
[322977919,1713556260728,-500.0,0.00016712,2]
[322977920,1713556260737,-283.271293,0.00016712,2]
[322977921,1713556260747,-500.0,0.00016712,2]
[322977922,1713556260757,-500.0,0.00016712,2]
[322977923,1713556260767,-616.68,0.00016712,2]
[322977924,1713556260776,-500.0,0.00016712,2]
[322977925,1713556260785,-500.0,0.00016712,2]
[322977926,1713556260794,-500.0,0.00016712,2]
[322977927,1713556260805,-188.211259,0.00016712,2]
[322977928,1713556260814,-188.211259,0.00016712,2]
[322977929,1713556260825,-283.271293,0.00016712,2]
[322977930,1713556260835,-283.271293,0.00016712,2]
[322977931,1713556260845,-283.271293,0.00016712,2]
[322977932,1713556260856,-188.211259,0.00016712,2]
[322977933,1713556260866,-283.271301,0.00016712,2]
[322977934,1713556260876,-188.21126,0.00016712,2]
[322977935,1713556260885,-500.0,0.00016712,2]
[322977936,1713556260894,-236.777995,0.00016712,2]
[322977937,1713556260904,-236.777995,0.00016712,2]
[322977938,1713556260914,-1054.75,0.00016712,2]
[322977939,1713556260924,-589.55,0.00016712,2]
[322977940,1713556260933,-500.0,0.00016712,2]
[322977941,1713556260943,-236.777995,0.00016712,2]
[322977942,1713556260953,-236.777995,0.00016712,2]
[322977943,1713556260962,-1266.98,0.00016712,2]
[322977944,1713556260971,-500.0,0.00016712,2]
[322977945,1713556260981,-500.0,0.00016712,2]
[322977946,1713556260990,-236.777995,0.00016712,2]
[322977947,1713556260999,-236.777995,0.00016712,2]
[322977948,1713556261008,-236.777995,0.00016712,2]
[322977949,1713556261021,-1583.79,0.00016712,2]
[322977950,1713556261030,-236.777998,0.00016712,2]
[322977951,1713556261039,-571.8472961,0.00016712,2]
[322977952,1713556261049,-526.37,0.00016712,2]
[322977953,1713556261058,-500.0,0.00016712,2]
[322977954,1713556261069,-1254.22,0.00016712,2]
[322977955,1713556261078,-721.98,0.00016712,2]
[322977956,1713556261088,-727.72,0.00016712,2]
[322977957,1713556261098,-500.0,0.00016712,2]
[322977958,1713556261107,-881.05,0.00016712,2]
[322977959,1713556261117,-500.0,0.00016712,2]
[322977960,1713556261126,-1155.87,0.00016712,2]
[322977961,1713556261135,-525.09,0.00016712,2]
[322977962,1713556261144,-500.0,0.00016712,2]
[322977963,1713556261153,-1053.13,0.00016712,2]
[322977964,1713556261164,-744.39,0.00016712,2]
[322977965,1713556261174,-627.17,0.00016712,2]
[322977966,1713556261182,-559.7,0.00016712,2]
[322977967,1713556261192,-500.0,0.00016712,2]
[322977968,1713556261202,-1139.78,0.00016712,2]
[322977969,1713556261213,-693.56736,0.00016712,2]
[322977970,1713556261222,-693.56736,0.00016712,2]
[322977971,1713556261231,-693.56736,0.00016712,2]
[322977972,1713556261240,-500.0,0.00016712,2]
[322977973,1713556261250,-1958.59,0.00016712,2]
[322977974,1713556261259,-693.56736,0.00016712,2]
[322977975,1713556261268,-568.38,0.00016712,2]
[322977976,1713556261277,-1093.69,0.00016712,2]
[322977977,1713556261286,-693.56736,0.00016712,2]
[322977978,1713556261296,-693.56736,0.00016712,2]
[322977979,1713556261305,-693.56736,0.00016712,2]
[322977980,1713556261314,-591.41,0.00016712,2]
[322977981,1713556261324,-693.567368,0.00016712,2]
[322977982,1713556261333,-500.0,0.00016712,2]
[322977983,1713556261342,-613.25,0.00016712,2]
[322977984,1713556261351,-1249.35,0.00016712,2]
[322977985,1713556261361,-500.0,0.00016712,2]
[322977986,1713556261370,-500.0,0.00016712,2]
[322977987,1713556261379,-1038.08,0.00016712,2]
[322977988,1713556261389,-500.0,0.00016712,2]
[322977989,1713556261399,-500.0,0.00016712,2]
[322977990,1713556261408,-1338.89,0.00016712,2]
[322977991,1713556261417,-966.77,0.00016712,2]
[322977992,1713556261427,-500.0,0.00016712,2]
[322977993,1713556261438,-500.0,0.00016712,2]
[322977994,1713556261447,-152.111119,0.00016712,2]
[322977995,1713556261459,-152.111119,0.00016712,2]
[322977996,1713556261468,-500.0,0.00016712,2]
[322977997,1713556261477,-152.111119,0.00016712,2]
[322977998,1713556261487,-152.111119,0.00016712,2]
[322977999,1713556261496,-500.0,0.00016712,2]
[322978000,1713556261506,-1000.62,0.00016712,2]
[322978001,1713556261515,-151.0,0.00016712,2]
[322978002,1713556261525,-151.0,0.00016712,2]
[322978003,1713556261534,-937.2,0.00016712,2]
[322978004,1713556261544,-151.0,0.00016712,2]
[322978005,1713556261553,-500.0,0.00016712,2]
[322978006,1713556261563,-152.111119,0.00016712,2]
[322978007,1713556261574,-151.0,0.00016712,2]
[322978008,1713556261583,-152.111119,0.00016712,2]
[322978009,1713556261592,-923.0,0.00016712,2]
[322978010,1713556261604,-152.111119,0.00016712,2]
[322978011,1713556261614,-152.111128,0.00016712,2]
[322978012,1713556261622,-500.0,0.00016712,2]
[322978013,1713556261632,-500.0,0.00016712,2]
[322978014,1713556261642,-500.0,0.00016712,2]
[322978015,1713556261652,-500.0,0.00016712,2]
[322978016,1713556261661,-1421.57,0.00016712,2]
[322978017,1713556261671,-500.0,0.00016712,2]
[322978018,1713556261681,-1225.98,0.00016712,2]
[322978019,1713556261691,-747.18,0.00016712,2]
[322978020,1713556261700,-1304.87,0.00016712,2]
[322978021,1713556261710,-500.0,0.00016712,2]
[322978022,1713556261721,-741.07,0.00016712,2]
[322978023,1713556261730,-942.09,0.00016712,2]
[322978024,1713556261740,-1721.59,0.00016712,2]
[322978025,1713556261750,-500.0,0.00016712,2]
[322978026,1713556261759,-541.35,0.00016712,2]
[322978027,1713556261769,-500.0,0.00016712,2]
[322978028,1713556261778,-500.0,0.00016712,2]
[322978029,1713556261788,-500.0,0.00016712,2]
[322978030,1713556261797,-500.0,0.00016712,2]
[322978031,1713556261807,-500.0,0.00016712,2]
[322978032,1713556261818,-500.0,0.00016712,2]
[322978033,1713556261827,-1128.5,0.00016712,2]
[322978034,1713556261836,-500.0,0.00016712,2]
[322978035,1713556261846,-563.34,0.00016712,2]
[322978036,1713556261855,-1167.97,0.00016712,2]
[322978037,1713556261865,-500.0,0.00016712,2]
[322978038,1713556261874,-590.35,0.00016712,2]
[322978039,1713556261884,-500.0,0.00016712,2]
[322978040,1713556261893,-500.0,0.00016712,2]
[322978041,1713556261903,-872.9,0.00016712,2]
[322978042,1713556261912,-889.5,0.00016712,2]
[322978043,1713556261922,-1626.23,0.00016712,2]
[322978044,1713556261930,-151.0,0.00016712,2]
[322978045,1713556261942,-500.0,0.00016712,2]
[322978046,1713556261954,-283.814329,0.00016712,2]
[322978047,1713556261963,-645.91,0.00016712,2]
[322978048,1713556261973,-500.0,0.00016712,2]
[322978049,1713556261982,-1961.45,0.00016712,2]
[322978050,1713556261991,-1702.07,0.00016712,2]
[322978051,1713556262000,-517.39232943,0.00016712,2]
[322978052,1713556262009,-500.0,0.00016712,2]
[322978053,1713556262020,-842.19,0.00016712,2]
[322978054,1713556262030,-500.0,0.00016712,2]
[322978055,1713556262040,-500.0,0.00016712,2]
[322978056,1713556262051,-500.0,0.00016712,2]
[322978057,1713556262062,-500.0,0.00016712,2]
[322978058,1713556262073,-500.0,0.00016712,2]
[322978059,1713556262082,-500.0,0.00016712,2]
[322978060,1713556262091,-866.91,0.00016712,2]
[322978061,1713556262101,-500.0,0.00016712,2]
[322978062,1713556262110,-500.0,0.00016712,2]
[322978063,1713556262120,-818.38,0.00016712,2]
[322978064,1713556262129,-500.0,0.00016712,2]
[322978065,1713556262138,-788.31,0.00016712,2]
[322978066,1713556262147,-500.0,0.00016712,2]
[322978067,1713556262156,-500.0,0.00016712,2]
[322978068,1713556262166,-260.98545,0.00016712,2]
[322978069,1713556262175,-500.0,0.00016712,2]
[322978070,1713556262185,-260.98545,0.00016712,2]
[322978071,1713556262195,-500.0,0.00016712,2]
[322978072,1713556262205,-260.98545,0.00016712,2]
[322978073,1713556262215,-1516.3,0.00016712,2]
[322978074,1713556262226,-260.98545,0.00016712,2]
[322978075,1713556262237,-500.0,0.00016712,2]
[322978076,1713556262247,-1375.05,0.00016712,2]
[322978077,1713556262258,-1204.0,0.00016712,2]
[322978078,1713556262270,-500.0,0.00016712,2]
[322978079,1713556262279,-260.98545,0.00016712,2]
[322978080,1713556262289,-260.98545,0.00016712,2]
[322978081,1713556262299,-645.15,0.00016712,2]
[322978082,1713556262309,-684.49,0.00016712,2]
[322978083,1713556262320,-260.98545,0.00016712,2]
[322978084,1713556262330,-500.0,0.00016712,2]
[322978085,1713556262339,-260.985444,0.00016712,2]
[322978086,1713556262348,-476.51292755,0.00016712,2]
[322978087,1713556262357,-500.0,0.00016712,2]
[322978088,1713556262367,-500.0,0.00016712,2]
[322978089,1713556262376,-1205.83,0.00016712,2]
[322978090,1713556262385,-500.0,0.00016712,2]
[322978091,1713556262394,-500.0,0.00016712,2]
[322978092,1713556262404,-4282.22,0.00016712,2]
[322978093,1713556262413,-500.0,0.00016712,2]
[322978094,1713556262422,-500.0,0.00016712,2]
[322978095,1713556262432,-898.49,0.00016712,2]
[322978096,1713556262441,-500.0,0.00016712,2]
[322978097,1713556262452,-500.0,0.00016712,2]
[322978098,1713556262461,-1004.37,0.00016712,2]
[322978099,1713556262471,-716.09,0.00016712,2]
[322978100,1713556262480,-500.0,0.00016712,2]
[322978101,1713556262489,-500.0,0.00016712,2]
[322978102,1713556262498,-776.03,0.00016712,2]
[322978103,1713556262507,-500.0,0.00016712,2]
[322978104,1713556262516,-1516.16,0.00016712,2]
[322978105,1713556262526,-643.01,0.00016712,2]
[322978106,1713556262535,-500.0,0.00016712,2]
[322978107,1713556262544,-2300.24,0.00016712,2]
[322978108,1713556262553,-500.0,0.00016712,2]
[322978109,1713556262563,-500.0,0.00016712,2]
[322978110,1713556262573,-500.0,0.00016712,2]
[322978111,1713556262583,-606.12,0.00016712,2]
[322978112,1713556262593,-1899.04,0.00016712,2]
[322978113,1713556262602,-500.0,0.00016712,2]
[322978114,1713556262611,-500.0,0.00016712,2]
[322978115,1713556262620,-537.38,0.00016712,2]
[322978116,1713556262630,-530.58,0.00016712,2]
[322978117,1713556262641,-695.72,0.00016712,2]
[322978118,1713556262650,-500.0,0.00016712,2]
[322978119,1713556262660,-500.0,0.00016712,2]
[322978120,1713556262670,-1653.34,0.00016712,2]
[322978121,1713556262679,-2483.47,0.00016712,2]
[322978122,1713556262688,-543.02,0.00016712,2]
[322978123,1713556262697,-500.0,0.00016712,2]
[322978124,1713556262707,-1864.05,0.00016712,2]
[322978125,1713556262716,-500.0,0.00016712,2]
[322978126,1713556262725,-2143.92,0.00016712,2]
[322978127,1713556262734,-500.0,0.00016712,2]
[322978128,1713556262743,-500.0,0.00016712,2]
[322978129,1713556262753,-905.8,0.00016712,2]
[322978130,1713556262762,-531.11,0.00016712,2]
[322978131,1713556262772,-542.459314,0.00016712,2]
[322978132,1713556262781,-542.459314,0.00016712,2]
[322978133,1713556262790,-542.459314,0.00016712,2]
[322978134,1713556262799,-3074.52,0.00016712,2]
[322978135,1713556262808,-542.459314,0.00016712,2]
[322978136,1713556262819,-151.0,0.00016712,2]
[322978137,1713556262828,-500.0,0.00016712,2]
[322978138,1713556262838,-500.0,0.00016712,2]
[322978139,1713556262847,-151.0,0.00016712,2]
[322978140,1713556262859,-850.73,0.00016712,2]
[322978141,1713556262869,-151.0,0.00016712,2]
[322978142,1713556262881,-151.0,0.00016712,2]
[322978143,1713556262890,-500.0,0.00016712,2]
[322978144,1713556262899,-542.459314,0.00016712,2]
[322978145,1713556262908,-1338.48,0.00016712,2]
[322978146,1713556262918,-1186.01,0.00016712,2]
[322978147,1713556262928,-500.0,0.00016712,2]
[322978148,1713556262937,-1346.4,0.00016712,2]
[322978149,1713556262947,-542.459314,0.00016712,2]
[322978150,1713556262957,-542.459314,0.00016712,2]
[322978151,1713556262968,-1187.18,0.00016712,2]
[322978152,1713556262978,-542.459324,0.00016712,2]
[322978153,1713556262989,-511.27702494,0.00016712,2]
[322978154,1713556262998,-1759.63,0.00016712,2]
[322978155,1713556263007,-2553.62,0.00016712,2]
[322978156,1713556263016,-3249.65,0.00016712,2]
[322978157,1713556263029,-920.57,0.00016712,2]
[322978158,1713556263038,-500.0,0.00016712,2]
[322978159,1713556263047,-695.75,0.00016712,2]
[322978160,1713556263058,-965.89,0.00016712,2]
[322978161,1713556263071,-151.0,0.00016712,2]
[322978162,1713556263080,-151.0,0.00016712,2]
[322978163,1713556263089,-818.31,0.00016712,2]
[322978164,1713556263099,-151.0,0.00016712,2]
[322978165,1713556263109,-151.0,0.00016712,2]
[322978166,1713556263119,-659.77,0.00016712,2]
[322978167,1713556263130,-500.0,0.00016712,2]
[322978168,1713556263139,-886.34,0.00016712,2]
[322978169,1713556263148,-628.33,0.00016712,2]
[322978170,1713556263157,-1470.34,0.00016712,2]
[322978171,1713556263167,-500.0,0.00016712,2]
[322978172,1713556263176,-500.0,0.00016712,2]
[322978173,1713556263185,-500.0,0.00016712,2]
[322978174,1713556263195,-151.0,0.00016712,2]
[322978175,1713556263204,-272.849604,0.00016712,2]
[322978176,1713556263213,-2281.01,0.00016712,2]
[322978177,1713556263222,-1317.65,0.00016712,2]
[322978178,1713556263232,-1072.8,0.00016712,2]
[322978179,1713556263241,-500.0,0.00016712,2]
[322978180,1713556263251,-966.71,0.00016712,2]
[322978181,1713556263260,-500.0,0.00016712,2]
[322978182,1713556263269,-728.82,0.00016712,2]
[322978183,1713556263277,-607.5,0.00016712,2]
[322978184,1713556263286,-500.0,0.00016712,2]
[322978185,1713556263297,-32171.55,0.00016712,2]
[322978186,1713556263306,-2055.66,0.00016712,2]
[322978187,1713556263315,-7422.51,0.00016712,2]
[322978188,1713556263329,-500.0,0.00016712,2]
[322978189,1713556263338,-2917.27,0.00016712,2]
[322978190,1713556263347,-151.0,0.00016712,2]
[322978191,1713556263356,-500.0,0.00016712,2]
[322978192,1713556263366,-611.22,0.00016712,2]
[322978193,1713556263375,-151.0,0.00016712,2]
[322978194,1713556263384,-4198.77,0.00016712,2]
[322978195,1713556263394,-1532.42,0.00016712,2]
[322978196,1713556263403,-500.0,0.00016712,2]
[322978197,1713556263412,-151.0,0.00016712,2]
[322978198,1713556263421,-151.0,0.00016712,2]
[322978199,1713556263430,-435.26373343,0.00016712,2]
[322978200,1713556263440,-500.0,0.00016712,2]
[322978201,1713556263450,-500.0,0.00016712,2]
[322978202,1713556263461,-561.47,0.00016712,2]
[322978203,1713556263470,-500.0,0.00016712,2]
[322978204,1713556263479,-500.0,0.00016712,2]
[322978205,1713556263489,-1705.42,0.00016712,2]
[322978206,1713556263498,-2096.98,0.00016712,2]
[322978207,1713556263511,-1955.43,0.00016712,2]
[322978208,1713556263522,-770.62,0.00016712,2]
[322978209,1713556263534,-500.0,0.00016712,2]
[322978210,1713556263548,-1967.63,0.00016712,2]
[322978211,1713556263559,-1912.52,0.00016712,2]
[322978212,1713556263572,-1852.66,0.00016712,2]
[322978213,1713556263584,-500.0,0.00016712,2]
[322978214,1713556263595,-500.0,0.00016712,2]
[322978215,1713556263607,-500.0,0.00016712,2]
[322978216,1713556263619,-1822.67,0.00016712,2]
[322978217,1713556263631,-500.0,0.00016712,2]
[322978218,1713556263644,-917.16,0.00016712,2]
[322978219,1713556263655,-28261.71,0.00016712,2]
[322978220,1713556263667,-884.05,0.00016712,2]
[322978221,1713556263679,-2206.81,0.00016712,2]
[322978222,1713556263690,-4007.63,0.00016712,2]
[322978223,1713556263699,-2295.03,0.00016712,2]
[322978224,1713556263710,-1356.85,0.00016712,2]
[322978225,1713556263722,-500.0,0.00016712,2]
[322978226,1713556263735,-500.0,0.00016712,2]
[322978227,1713556263748,-1754.31,0.00016712,2]
[322978228,1713556263760,-500.0,0.00016712,2]
[322978229,1713556263770,-500.0,0.00016712,2]
[322978230,1713556263781,-500.0,0.00016712,2]
[322978231,1713556263792,-3542.68,0.00016712,2]
[322978232,1713556263805,-3706.08,0.00016712,2]
[322978233,1713556263817,-151.0,0.00016712,2]
[322978234,1713556263828,-151.0,0.00016712,2]
[322978235,1713556263838,-1998.14,0.00016712,2]
[322978236,1713556263849,-663.55,0.00016712,2]
[322978237,1713556263862,-151.0,0.00016712,2]
[322978238,1713556263874,-500.0,0.00016712,2]
[322978239,1713556263885,-569.94,0.00016712,2]
[322978240,1713556263899,-151.0,0.00016712,2]
[322978241,1713556263910,-500.0,0.00016712,2]
[322978242,1713556263921,-500.0,0.00016712,2]
[322978243,1713556263932,-500.0,0.00016712,2]
[322978244,1713556263943,-500.0,0.00016712,2]
[322978245,1713556263953,-500.0,0.00016712,2]
[322978246,1713556263965,-1233.03,0.00016712,2]
[322978247,1713556263976,-2435.68,0.00016712,2]
[322978248,1713556263988,-273.4017957,0.00016712,2]
[322978249,1713556263998,-500.0,0.00016712,2]
[322978250,1713556264011,-1492.18,0.00016712,2]
[322978251,1713556264025,-2358.4,0.00016712,2]
[322978252,1713556264037,-500.0,0.00016712,2]
[322978253,1713556264049,-181.92099973,0.00016712,2]
[322978254,1713556264061,-6855.2,0.00016712,2]
[322978255,1713556264074,-1793.82,0.00016712,2]
[322978256,1713556264084,-817.01,0.00016712,2]
[322978257,1713556264094,-25550.06,0.00016712,2]
[322978258,1713556264104,-2797.08,0.00016712,2]
[322978259,1713556264114,-500.0,0.00016712,2]
[322978260,1713556264124,-664.07,0.00016712,2]
[322978261,1713556264136,-1070.73,0.00016712,2]
[322978262,1713556264147,-500.0,0.00016712,2]
[322978263,1713556264159,-500.0,0.00016712,2]
[322978264,1713556264169,-5827.19,0.00016712,2]
[322978265,1713556264182,-2136.81,0.00016712,2]
[322978266,1713556264194,-338.526409,0.00016712,2]
[322978267,1713556264204,-338.526409,0.00016712,2]
[322978268,1713556264215,-338.526409,0.00016712,2]
[322978269,1713556264225,-1702.28,0.00016712,2]
[322978270,1713556264236,-338.526409,0.00016712,2]
[322978271,1713556264249,-500.0,0.00016712,2]
[322978272,1713556264261,-500.0,0.00016712,2]
[322978273,1713556264272,-500.0,0.00016712,2]
[322978274,1713556264282,-500.0,0.00016712,2]
[322978275,1713556264293,-338.526409,0.00016712,2]
[322978276,1713556264303,-338.526409,0.00016712,2]
[322978277,1713556264313,-338.526409,0.00016712,2]
[322978278,1713556264328,-338.526411,0.00016712,2]
[322978279,1713556264339,-798.21,0.00016712,2]
[322978280,1713556264349,-500.0,0.00016712,2]
[322978281,1713556264360,-500.0,0.00016712,2]
[322978282,1713556264372,-1701.18,0.00016712,2]
[322978283,1713556264383,-3580.93,0.00016712,2]
[322978284,1713556264394,-2297.27,0.00016712,2]
[322978285,1713556264405,-701.86,0.00016712,2]
[322978286,1713556264416,-605.47,0.00016712,2]
[322978287,1713556264427,-750.18,0.00016712,2]
[322978288,1713556264437,-500.0,0.00016712,2]
[322978289,1713556264449,-3175.18,0.00016712,2]
[322978290,1713556264460,-500.0,0.00016712,2]
[322978291,1713556264471,-1571.2,0.00016712,2]
[322978292,1713556264482,-500.0,0.00016712,2]
[322978293,1713556264492,-500.0,0.00016712,2]
[322978294,1713556264503,-29477.99,0.00016712,2]
[322978295,1713556264514,-500.0,0.00016712,2]
[322978296,1713556264524,-2172.78,0.00016712,2]
[322978297,1713556264535,-10510.93,0.00016712,2]
[322978298,1713556264547,-500.0,0.00016712,2]
[322978299,1713556264558,-569.19,0.00016712,2]
[322978300,1713556264570,-500.0,0.00016712,2]
[322978301,1713556264581,-500.0,0.00016712,2]
[322978302,1713556264592,-4428.71,0.00016712,2]
[322978303,1713556264603,-21413.72,0.00016712,2]
[322978304,1713556264614,-1560.58,0.00016712,2]
[322978305,1713556264626,-151.0,0.00016712,2]
[322978306,1713556264637,-341.61704088,0.00016712,2]
[322978307,1713556264649,-1362.65,0.00016712,2]
[322978308,1713556264659,-936.54,0.00016712,2]
[322978309,1713556264671,-2387.03,0.00016712,2]
[322978310,1713556264682,-151.0,0.00016712,2]
[322978311,1713556264692,-151.0,0.00016712,2]
[322978312,1713556264703,-151.0,0.00016712,2]
[322978313,1713556264714,-856.45,0.00016712,2]
[322978314,1713556264724,-500.0,0.00016712,2]
[322978315,1713556264735,-500.0,0.00016712,2]
[322978316,1713556264747,-2413.03,0.00016712,2]
[322978317,1713556264758,-500.0,0.00016712,2]
[322978318,1713556264769,-500.0,0.00016712,2]
[322978319,1713556264780,-9064.83,0.00016712,2]
[322978320,1713556264790,-1296.97,0.00016712,2]
[322978321,1713556264802,-749.76,0.00016712,2]
[322978322,1713556264812,-500.0,0.00016712,2]
[322978323,1713556264826,-2520.45,0.00016712,2]
[322978324,1713556264837,-1094.93,0.00016712,2]
[322978325,1713556264848,-1278.2,0.00016712,2]
[322978326,1713556264859,-500.0,0.00016712,2]
[322978327,1713556264871,-500.0,0.00016712,2]
[322978328,1713556264883,-500.0,0.00016712,2]
[322978329,1713556264894,-2131.6,0.00016712,2]
[322978330,1713556264910,-601.91,0.00016712,2]
[322978331,1713556264929,-500.0,0.00016712,2]
[322978332,1713556264941,-500.0,0.00016712,2]
[322978333,1713556264952,-3728.33,0.00016712,2]
[322978334,1713556264963,-500.0,0.00016712,2]
[322978335,1713556264974,-500.0,0.00016712,2]
[322978336,1713556264984,-2658.44,0.00016712,2]
[322978337,1713556264995,-540.77,0.00016712,2]
[322978338,1713556265006,-1845.27,0.00016712,2]
[322978339,1713556265018,-1715.15,0.00016712,2]
[322978340,1713556265034,-500.0,0.00016712,2]
[322978341,1713556265046,-7173.81,0.00016712,2]
[322978342,1713556265059,-770.22,0.00016712,2]
[322978343,1713556265074,-500.0,0.00016712,2]
[322978344,1713556265085,-3034.11,0.00016712,2]
[322978345,1713556265096,-520.67,0.00016712,2]
[322978346,1713556265109,-924.23,0.00016712,2]
[322978347,1713556265121,-1431.03,0.00016712,2]
[322978348,1713556265132,-432.66339644,0.00016712,2]
[322978349,1713556265142,-620.23,0.00016712,2]